[Event "7th Sharjah Masters 2024"]
[Site "Sharjah"]
[Date "2024.05.18"]
[Round "5.1"]
[White "Aravindh, Chithambaram VR."]
[Black "Salem, A.R. Saleh"]
[Result "1-0"]
[ECO "E62"]
[WhiteElo "2671"]
[BlackElo "2629"]
[Annotator "TA"]
[PlyCount "95"]
[EventDate "2024.05.13"]
[EventType "swiss"]
[EventCountry "UAE"]
[SourceTitle "playchess.com"]
[Source "ChessBase"]
[SourceQuality "1"]
[TimeControl "5400+30"]

{[%evp 19,95,8,12,3,29,27,35,30,70,50,60,39,37,32,35,40,35,36,17,30,16,18,27,26,89,52,67,47,55,16,8,8,19,-14,-8,-8,-8,-13,-12,-10,170,164,157,170,162,167,192,196,156,198,198,185,198,193,231,235,278,258,275,0,247,0,282,269,304,310,309,339,342,350,400,396,433,427,412,398,453,461]} 1. d4 {[%emt 0:00:08]} Nf6 {[%emt 0:01:07]} 2. Nf3 {[%emt 0:00:17]} g6 {[%emt 0:00:26]} 3. g3 {[%emt 0:00:22]} Bg7 {[%emt 0:00:12]} 4. Bg2 {[%emt 0:00:08]} O-O {[%emt 0:00:18]} 5. O-O {[%emt 0:00:11]} d6 {[%emt 0:00:34]} 6. c4 {[%emt 0:00:30]} Nc6 {[%emt 0:01:20]} 7. Nc3 {[%emt 0:00:46]} e5 {[%emt 0:00:14]} 8. d5 {[%emt 0:01:16]} Nb8 {[%emt 0:00:06] outshines the older 8...Ne7.} 9. c5 {[%emt 0:00:40] E62: King's Indian: Fianchetto: 6...c6 and Panno Variation (6...Nc6) without ...a6.} Na6 {[%emt 0:03:42]} 10. cxd6 {[%emt 0:00:14]} cxd6 {[%emt 0:00:06]} 11. Nd2 {[%emt 0:00:27]} Ne8 {[%emt 0:04:01]} 12. Nc4 {[%emt 0:02:17]} f5 {[%emt 0:02:06]} 13. a4 $146 {[%emt 0:08:33]} ({Predecessor:} 13. Bd2 h5 14. h4 f4 15. Ne4 Bh6 16. e3 fxg3 17. fxg3 Bf5 18. Nf2 Rc8 19. Qe2 {½-½ Wadle,M (2071)-Zovko,M (2084) W-ch WS/H/807 email 2020}) 13... g5 {[%emt 0:17:40]} 14. Be3 {[%emt 0:16:07]} Nac7 {[%emt 0:13:38]} 15. Qb3 {[%emt 0:10:44]} Rf7 {[%emt 0:07:01]} 16. Nb5 {[%emt 0:16:25]} b6 $1 {[%emt 0:01:03]} 17. Bxg5 {[%emt 0:05:07]} Qxg5 {[%emt 0:00:22]} 18. Nbxd6 {[%emt 0:00:09]} Nxd6 {[%emt 0:06:27]} 19. Nxd6 {[%emt 0:00:04]} Qf6 {[%emt 0:00:05]} 20. Nxf7 {[%emt 0:04:26]} Qxf7 {[%emt 0:00:05]} 21. a5 {[%emt 0:00:34]} Rb8 {[%emt 0:03:58]} (21... bxa5 $1 $11 {remains equal.} 22. Rxa5 e4) 22. Rfc1 {[%emt 0:08:38]} e4 {[%emt 0:10:35]} 23. axb6 {[%emt 0:03:27]} axb6 {[%emt 0:00:05]} 24. Qc2 {[%emt 0:13:05]} Be5 $1 {[%emt 0:00:31]} 25. Ra7 {[%emt 0:00:28]} Bb7 {[%emt 0:01:52]} 26. e3 {[%emt 0:00:12]} Nb5 {[%emt 0:01:45]} 27. Ra4 {[%emt 0:00:19]} Bxd5 {[%emt 0:00:52]} 28. Bf1 {[%emt 0:00:30]} Nd6 {[%emt 0:01:23]} 29. Qd2 {[%emt 0:02:08]} Kh8 $2 {[%emt 0:05:59] [#]} (29... Be6 $11) 30. Rd4 $1 $18 {[%emt 0:01:09]} Bxd4 {[%emt 0:04:34]} 31. Qxd4+ {[%emt 0:00:02]} Kg8 {[%emt 0:00:03]} 32. Rd1 {[%emt 0:00:13]} Rd8 {[%emt 0:00:32]} 33. Qxd5 {[%emt 0:01:23]} Qxd5 {[%emt 0:00:04]} 34. Rxd5 {[%emt 0:00:03]} Kf7 {[%emt 0:00:06] [#]} 35. Bc4 $1 {[%emt 0:01:02]} Ke7 {[%emt 0:01:02]} 36. Bb3 {[%emt 0:00:31]} b5 {[%emt 0:06:13]} 37. Kg2 {[%emt 0:01:42]} Rb8 {[%emt 0:01:28]} 38. Re5+ {[%emt 0:00:14]} Kf8 {[%emt 0:00:18]} 39. Rd5 $2 {[%emt 0:01:33]} (39. h3 $18) 39... Rb6 $2 {[%emt 0:00:23]} (39... Ke7 $11 {and Black has nothing to worry.} 40. Re5+ Kf8) 40. Re5 {[%emt 0:00:16]} Rb8 $1 {[%emt 0:00:45]} 41. h3 {[%emt 0:00:08]} Rc8 {[%emt 0:01:57]} 42. Re6 {[%emt 0:00:56]} Rd8 {[%emt 0:01:03]} 43. g4 {[%emt 0:00:09]} fxg4 {[%emt 0:00:19]} 44. hxg4 {[%emt 0:00:04]} Rd7 {[%emt 0:01:33]} 45. Bd5 {[%emt 0:00:52]} b4 {[%emt 0:00:50]} 46. Bc6 {[%emt 0:01:46]} (46. Bxe4 Nc4 47. b3 Nd2 $18) 46... Rd8 {[%emt 0:00:12]} 47. Bxe4 {[%emt 0:00:14]} b3 {[%emt 0:00:10]} 48. Bd5 {[%emt 0:01:30]} ({Resist} 48. Bxh7 Nc4 49. Kg3 Kg7 50. Re7+ Kf8) 1-0

[Event "7th Sharjah Masters 2024"]
[Site "Sharjah"]
[Date "2024.05.18"]
[Round "5.2"]
[White "Niemann, Hans Moke"]
[Black "Sarana, Alexey"]
[Result "1/2-1/2"]
[ECO "E11"]
[WhiteElo "2689"]
[BlackElo "2706"]
[Annotator "TA"]
[PlyCount "32"]
[EventDate "2024.05.13"]
[EventType "swiss"]
[EventCountry "UAE"]
[SourceTitle "playchess.com"]
[Source "ChessBase"]
[SourceQuality "1"]
[TimeControl "5400+30"]

{[%evp 15,32,22,18,6,0,0,3,0,0,0,0,0,9,5,0,0,2,0,0]} 1. d4 {[%emt 0:00:21]} Nf6 {[%emt 0:00:06]} 2. c4 {[%emt 0:00:18]} e6 {[%emt 0:00:04]} 3. Nf3 {[%emt 0:00:07]} d5 {[%emt 0:00:05]} 4. g3 {[%emt 0:00:11]} Bb4+ {[%emt 0:00:41]} 5. Bd2 {[%emt 0:00:40]} Be7 {[%emt 0:00:05]} 6. Bg2 {[%emt 0:00:10]} O-O {[%emt 0:00:19]} 7. O-O {[%emt 0:01:27]} Nbd7 {[%emt 0:00:14]} 8. Qc2 {[%emt 0:01:57]} c6 {[%emt 0:00:24] The position is equal.} 9. a4 {[%emt 0:00:28]} a5 {[%emt 0:04:46]} 10. Rc1 {[%emt 0:00:22]} h6 {[%emt 0:02:06]} 11. Bc3 {[%emt 0:06:32]} b6 {[%emt 0:04:41]} 12. Ne5 {[%emt 0:04:10]} Bb7 {[%emt 0:02:07]} 13. Nxd7 {[%emt 0:03:21]} Qxd7 {[%emt 0:01:36]} 14. Nd2 {[%emt 0:00:30]} b5 {[%emt 0:08:33]} 15. axb5 {[%emt 0:26:08]} cxb5 {[%emt 0:00:18]} 16. cxb5 {[%emt 0:00:15]} ({But not} 16. Rxa5 b4 (16... bxc4 17. Rca1 $11) (16... dxc4 17. Bxb7 Qxb7 18. Rxa8 $17) 17. Rxa8 Rxa8 $19) 16... Qxb5 {[%emt 0:00:39] An uneventful encounter.   Weighted Error Value: White=0.02 (flawless) /Black=0.00 (flawless) .  OK:         	White=2     	Black=4} 1/2-1/2

[Event "7th Sharjah Masters 2024"]
[Site "Sharjah"]
[Date "2024.05.18"]
[Round "5.3"]
[White "Erigaisi Arjun"]
[Black "Murzin, Volodar"]
[Result "1/2-1/2"]
[ECO "D37"]
[WhiteElo "2762"]
[BlackElo "2634"]
[Annotator "TA"]
[PlyCount "88"]
[EventDate "2024.05.13"]
[EventType "swiss"]
[EventCountry "UAE"]
[SourceTitle "playchess.com"]
[Source "ChessBase"]
[SourceQuality "1"]
[TimeControl "5400+30"]

{[%evp 19,88,31,45,36,48,34,27,37,42,39,25,31,57,52,60,57,103,108,104,84,107,53,77,62,64,40,91,60,100,34,68,0,0,0,0,0,0,-40,-29,-122,-35,-29,0,0,14,13,13,13,13,13,13,0,14,14,14,0,18,0,26,0,34,0,0,0,0,0,0,0,0,0,0]} 1. d4 {[%emt 1:31:00]} d5 {[%emt 1:31:00]} 2. c4 {[%emt 0:00:30]} e6 {[%emt 0:00:30]} 3. Nf3 {[%emt 0:00:30]} Nf6 {[%emt 0:00:30]} 4. Nc3 {[%emt 0:00:30]} Be7 {[%emt 0:00:30]} 5. cxd5 {[%emt 0:00:30]} exd5 {[%emt 0:00:30]} 6. Bf4 {[%emt 0:00:30]} O-O {[%emt 0:00:30]} 7. e3 {[%emt 0:00:30]} c5 {[%emt 0:00:30]} 8. dxc5 {[%emt 0:00:30]} Bxc5 {[%emt 0:00:30][%cal Be7c5,Bc5a7,Ba7d4][%mdl 32]} 9. Be2 {[%emt 0:00:30]} Nc6 {[%emt 0:00:30]} 10. O-O {[%emt 0:00:30]} a6 {[%emt 0:00:30]} 11. Rc1 {[%emt 0:00:30]} Be6 {[%emt 0:00:30]} 12. Ne5 {[%emt 0:00:30]} d4 {[%emt 0:00:30] [#] White must now prevent ...Nxe5.} 13. Na4 {[%emt 0:00:30] White has an edge.} Ba7 {[%emt 0:00:30] aiming for ...dxe3.} 14. Nxc6 {[%emt 0:00:30]} bxc6 {[%emt 0:00:30]} 15. exd4 {[%emt 0:00:30]} Qxd4 {[%emt 0:00:30]} 16. Qxd4 {[%emt 0:00:30]} Bxd4 {[%emt 0:00:30]} 17. b3 {[%emt 0:00:30][%cal Of1d1]} Bd5 {[%emt 0:00:30]} (17... Nd5 $14 18. Bd2 Bd7) 18. Rfd1 $16 {[%emt 0:00:30]} Ba7 {[%emt 0:00:30]} 19. Kf1 {[%emt 0:00:30][%cal Of4e5] White is more active.} (19. Bxa6 $6 Ne4 20. Bg3 Nxg3 21. hxg3 Bxf2+ 22. Kxf2 Rxa6 $11) 19... a5 {[%emt 0:00:30]} 20. Bc4 {[%emt 0:00:30]} (20. Nc3 $16) 20... Rfe8 {[%emt 0:00:30]} 21. h3 {[%emt 0:00:30]} (21. Bxd5 {simplifies} Nxd5 22. Bd2 Re6 23. Re1) 21... Re6 {[%emt 0:00:30]} 22. Bc7 {[%emt 0:00:30]} Rae8 {[%emt 0:00:30]} (22... Bxc4+ $14 23. Rxc4 Nd5) 23. Rc2 {[%emt 0:00:30]} Ne4 {[%emt 0:00:30]} 24. Bxd5 {[%emt 0:00:30]} (24. Bxa5 $2 Nxf2 25. Rxd5 (25. Rxf2 $2 Bxc4+ 26. bxc4 Bxf2 $19) 25... cxd5 26. Bxd5 Nd1 27. Bxe6 Ne3+ 28. Ke2 Nxc2 $19) (24. Bd3 $16) 24... cxd5 $14 {[%emt 0:00:30]} 25. Bxa5 {[%emt 0:00:30]} (25. Rxd5 $2 Nd2+ 26. Kg1 Re1+ 27. Kh2 Nf1+ 28. Kh1 Ne3+ 29. Kh2 Nxd5 $19 (29... Nxc2 $2 30. Bb6 $19)) ({White should play} 25. f3 $1 $14 Nd6 26. Bxd6 (26. Bxa5 $2 Nf5 $19) 26... Rxd6 27. Rcc1) 25... Ng3+ $1 $11 {[%emt 0:00:30]} 26. Kg1 $1 {[%emt 0:00:30][%cal Oa4c5]} Ne2+ {[%emt 0:00:30]} 27. Kh1 {[%emt 0:00:30]} Bxf2 {[%emt 0:00:30]} 28. Bc7 {[%emt 0:00:30][%cal Oa4c3]} ({Much weaker is} 28. Rxd5 Ng3+ 29. Kh2 Nf1+ 30. Kh1 Ne3 31. Rxf2 Nxd5 $19) 28... h5 {[%emt 0:00:30]} 29. g4 {[%emt 0:00:30]} (29. Rxd5 $2 {too greedy.} Ng3+ 30. Kh2 (30. Bxg3 {gets mated.} Bxg3) 30... Nf1+ 31. Kh1 Re1 32. Rxf2 h4 $19 (32... Ne3+ $2 33. Kh2 $19)) (29. Nb2 $11) 29... h4 {[%emt 0:00:30]} ({Black should try} 29... hxg4 $17 {Hoping for ...Rh6.} 30. hxg4 d4) 30. Kg2 $15 {[%emt 0:00:30]} Bg3 {[%emt 0:00:30]} 31. Bxg3 {[%emt 0:00:30]} hxg3 {[%emt 0:00:30]} 32. Nc3 $1 {[%emt 0:00:30]} Nxc3 {[%emt 0:00:30]} 33. Rxc3 $11 {[%emt 0:00:30][%mdl 4096] Endgame. KRR-KRR} Re2+ {[%emt 0:00:30]} 34. Kxg3 {[%emt 0:00:30] White wants to play a4.} Rxa2 {[%emt 0:00:30]} 35. Rdd3 {[%emt 0:00:30]} d4 36. Rxd4 Rb8 {[%emt 0:01:00]} 37. Rd5 Kh7 {[%emt 0:00:30]} 38. Rf3 {[%emt 0:01:30]} Rb2 {[%emt 0:00:30]} 39. Rdd3 {[%emt 0:00:30]} Rb4 {[%emt 0:00:30]} 40. Kh4 {[%emt 0:00:30]} f6 {[%emt 0:00:30] The position is equal.} 41. Kg3 {[%emt 0:00:30]} Kg6 {[%emt 0:00:30]} 42. Rc3 {[%emt 0:00:30]} Kh7 {[%emt 0:00:30]} 43. Rfe3 {[%emt 0:00:30]} Kg6 {[%emt 0:00:30]} 44. Red3 {[%emt 0:00:30]} Kh6 {[%emt 0:00:30] Weighted Error Value: White=0.20 (precise) /Black=0.15 (very precise) .  Mistake:       	White=4     	Black=3      Inaccurate:     	White=4     	Black=6      OK:         	White=5     	Black=12     Best:        	White=3     	Black=2      Strong:       	White=2     	Black=1} 1/2-1/2

[Event "7th Sharjah Masters 2024"]
[Site "Sharjah"]
[Date "2024.05.18"]
[Round "5.4"]
[White "Puranik, Abhimanyu"]
[Black "Tabatabaei, M. Amin"]
[Result "0-1"]
[ECO "C54"]
[WhiteElo "2631"]
[BlackElo "2707"]
[Annotator "TA"]
[PlyCount "184"]
[EventDate "2024.05.13"]
[EventType "swiss"]
[EventCountry "UAE"]
[SourceTitle "playchess.com"]
[Source "ChessBase"]
[SourceQuality "1"]
[TimeControl "5400+30"]

{[%evp 10,184,14,13,16,4,23,0,10,8,21,25,21,0,17,-14,0,0,0,-8,-4,-18,-19,-25,-6,-16,-18,-30,-13,-19,0,-31,-29,-39,-35,-27,-20,-16,-18,-21,-14,-25,-27,-20,-29,-22,0,0,0,-99,-7,-78,-85,-109,-22,-60,-47,-54,-64,-57,-50,-57,-31,-45,-22,-92,-92,-92,-97,-97,-97,-96,-98,-111,-126,-120,-100,-109,-105,-122,-137,-174,-165,-166,-166,-195,-169,-159,-152,-151,-129,-129,-20,-592,-616,-601,-600,-1511,-787,-775,-604,-440,-393,-1724,-1404,-6134,-5737,-6175,-5531,-5793,-5531,-5112,-4820,-4813,-4794,-4659,-4583,-6228,-6221,-6228,-6221,-6221,-6221,-6199,-6181,-6156,-6134,-6112,-6108,-5854,-6053,-5981,-5756,-6658,-6614,-8852,-6509,-5634,-4897,-4815,-4766,-4751,-4744,-4693,0,-4682,-4675,-4619,-4594,-4445,-2928,-3664,-4206,-29978,-29979,-29978,-29980,-29979,-29978,-29974,-2542,-29979,-29980,-29980,-29982,-29982,-29979,-29983,-29982,-29984,-29985,-29985,-29986,-29986,-29986,-29987,-29988]} 1. e4 {[%emt 0:00:04]} e5 {[%emt 0:00:08]} 2. Nf3 {[%emt 0:00:16]} Nc6 {[%emt 0:00:05]} 3. Bc4 {[%emt 0:00:18]} Nf6 {[%emt 0:00:08]} 4. d3 {[%emt 0:00:09]} Bc5 {[%emt 0:00:05]} 5. O-O {[%emt 0:00:21]} d6 {[%emt 0:00:09]} 6. c3 {[%emt 0:00:09]} a5 {[%emt 0:00:06]} 7. Nbd2 {[%emt 0:00:52][%cal Bb1d2,Bd2f1,Bf1g3][%mdl 32]} O-O {[%emt 0:00:18]} 8. h3 {[%emt 0:00:24]} Ba7 {[%emt 0:03:51] The position is equal.} 9. Re1 {[%emt 0:02:14]} Be6 {[%emt 0:00:24]} 10. Bb5 {[%emt 0:00:51]} Ne7 {[%emt 0:00:18]} 11. Nf1 {[%emt 0:04:14]} Ng6 {[%emt 0:00:55]} 12. Ng3 {[%emt 0:03:41]} c6 {[%emt 0:07:41]} 13. Ba4 {[%emt 0:00:25]} d5 {[%emt 0:00:07]} 14. exd5 {[%emt 0:03:18]} Nxd5 {[%emt 0:00:18]} 15. Bc2 {[%emt 0:03:26]} Qc7 {[%emt 0:12:44]} 16. d4 {[%emt 0:09:02]} exd4 $1 {[%emt 0:00:47]} 17. Nxd4 {[%emt 0:00:39]} Rae8 {[%emt 0:06:57]} 18. Re4 {[%emt 0:20:59]} Nf6 {[%emt 0:08:53]} 19. Re1 {[%emt 0:00:05]} Bd5 {[%emt 0:01:38]} 20. Rxe8 {[%emt 0:02:21]} Rxe8 {[%emt 0:00:07]} 21. Bg5 {[%emt 0:00:05]} Qe5 {[%emt 0:02:28]} 22. Qd2 {[%emt 0:02:25]} h6 {[%emt 0:02:10]} 23. Be3 {[%emt 0:00:13]} Bb8 $40 {[%emt 0:27:46][%mdl 128] Black attacks.} 24. Ndf5 {[%emt 0:01:30][%cal Of5g7] Prevents Nh4} Nf4 {[%emt 0:00:05]} 25. Bd4 {[%emt 0:06:05]} (25. Bb3 $5) 25... Qe6 {[%emt 0:01:01]} 26. f3 {[%emt 0:03:21]} h5 {[%emt 0:00:28] aiming for ...g6.} (26... Bxa2 $6 27. Bxf6 gxf6 28. Be4 $16 (28. Nxh6+ Kh8 $16)) 27. Bf2 $1 {[%emt 0:15:19]} g6 {[%emt 0:01:01]} (27... Bxa2 $5 28. h4 Bc7 $15) 28. Re1 {[%emt 0:01:20]} Qd7 {[%emt 0:00:10]} 29. Bd4 {[%emt 0:04:50]} (29. Rxe8+ $11 Nxe8 30. Ne3) 29... Nh7 {[%emt 0:04:58]} (29... Bxa2 30. Bxf6 Rxe1+ (30... Qxd2 31. Rxe8+ Kh7 32. Rh8#) (30... Nxh3+ 31. Kh2 Bxg3+ 32. Nxg3 Re6 33. Qxd7 Rxf6 34. Qd8+ Kg7 35. Re8) 31. Qxe1 $16) (29... Re6 $1 $17 30. Ne2 Bxa2 (30... gxf5 31. Nxf4 Bxf4 32. Qxf4 $11) 31. Nxf4 Bxf4 32. Qxf4 Rxe1+ 33. Kf2 Re6) 30. Nh6+ {[%emt 0:09:09]} (30. Rxe8+ $11 Qxe8 31. Be3) 30... Kf8 $17 {[%emt 0:00:18][%cal Of4h3]} 31. Ne4 {[%emt 0:01:15][%cal Oc3c4] c4! would now be deadly.} f5 {[%emt 0:02:39]} (31... Bxa2 $2 32. Bc5+ $18) (31... Qd8 $17 {[%cal Od5e4]} 32. Kh1 b5 (32... Bxa2 33. b3 $15)) 32. Nc5 {[%emt 0:04:30][%cal Rc5d7]} (32. Be3 {keeps more tension.} fxe4 33. fxe4 Kg7 34. Bxf4 Bxf4 35. Qxf4 Qe7 36. Re3) 32... Rxe1+ {[%emt 0:01:48]} 33. Qxe1 {[%emt 0:00:01]} Qe7 {[%emt 0:00:48]} 34. Qxe7+ {[%emt 0:00:16]} Kxe7 {[%emt 0:00:01]} 35. Kf2 {[%emt 0:00:05] Prevents Ne2} b6 {[%emt 0:00:31]} (35... Bxa2 36. Nxb7 Bc7 37. Bc5+ Kf6 38. Bd4+ Ke7 39. Bc5+ Ke8 40. h4 $11) 36. Na6 {[%emt 0:03:15][%csl LRb6,LRb8]} Ba7 {[%emt 0:00:05]} 37. Nc7 {[%emt 0:00:05]} (37. b3 $11 {keeps the balance.}) 37... Bxa2 {[%emt 0:02:44]} 38. Be3 {[%emt 0:00:04]} Ne6 {[%emt 0:01:18]} 39. Nxe6 {[%emt 0:00:02]} Bxe6 {[%emt 0:00:06]} (39... Kxe6 40. g4 Kf6 41. gxh5 $16 (41. gxf5 g5 $16)) 40. g4 {[%emt 0:00:02]} Kf6 $1 {[%emt 0:01:04]} 41. Kg3 {[%emt 0:02:14]} c5 {[%emt 0:05:19] Inhibits Bd4+.} 42. Kh4 {[%emt 0:00:21]} hxg4 {[%emt 0:00:32]} 43. hxg4 {[%emt 0:00:11]} Bb8 {[%emt 0:00:03]} 44. gxf5 {[%emt 0:01:21]} gxf5 {[%emt 0:00:03]} 45. b4 {[%emt 0:00:24]} Bd6 {[%emt 0:04:29]} 46. bxa5 {[%emt 0:00:04]} bxa5 {[%emt 0:00:00]} 47. c4 {[%emt 0:00:04]} Bd7 {[%emt 0:01:35]} (47... Bxc4 48. Nxf5 Bf8 49. Bd2 $11) 48. Bc1 {[%emt 0:00:06]} a4 {[%emt 0:00:55]} 49. f4 {[%emt 0:01:07]} Nf8 $1 {[%emt 0:02:59][%cal Oa4a3] ...a3! is the strong threat.} (49... Kg6 50. Ng4 $17) 50. Kg3 {[%emt 0:00:02]} Ne6 {[%emt 0:01:27]} (50... Kg6 $17 51. Ng4 Ne6 52. Ne5+ Bxe5 53. fxe5 Nd4) 51. Nxf5 {[%emt 0:01:28][%mdl 8192] [#]} (51. Bxf5 $11 {and White is okay.} Be8 52. Bb2+ Nd4 53. Be4) 51... Bxf4+ $1 $19 {[%emt 0:00:31][%mdl 512]} 52. Bxf4 {[%emt 0:00:03]} Nxf4 $11 {[%emt 0:01:29][%mdl 4096] Endgame. KBN-KBN} 53. Nd6 {[%emt 0:00:58]} Ke5 {[%emt 0:00:00]} 54. Nf7+ {[%emt 0:00:19]} Kd4 {[%emt 0:00:00]} 55. Kxf4 {[%emt 0:00:27][%cal Oc2a4] [#]} a3 {[%emt 0:00:00][%cal Oa3a2]} (55... Kxc4 56. Ne5+ Kc3 57. Bxa4 Bxa4 58. Ke4 $11) 56. Bb1 {[%emt 0:00:07] [#]} Kc3 $1 {[%emt 0:00:33][%cal Oc3b2] Strongly threatening ...Kb2!} (56... Kxc4 57. Nd6+ (57. Ne5+ Kb3 $17) 57... Kd5 58. Nf7 $11) (56... Be6 57. Nd6 $11) 57. Nd6 {[%emt 0:00:45]} Kb2 {[%emt 0:00:22]} 58. Nb5 {[%emt 0:00:05]} Bxb5 $1 {[%emt 0:00:14]} (58... Kxb1 59. Nxa3+ Kb2 60. Nb5 $11) 59. cxb5 {[%emt 0:00:03]} Kxb1 $19 {[%emt 0:00:02] KPP-KP} 60. b6 {[%emt 0:00:03]} a2 {[%emt 0:00:03]} 61. b7 {[%emt 0:00:02]} a1=Q {[%emt 0:00:03]} (61... a1=B 62. b8=Q+ (62. b8=B $2 c4 $19) 62... Kc2 63. Qb5 Bd4 64. Qc4+ Kd2 65. Ke4 (65. Qa2+ Kd3 66. Qb1+ Kc4 67. Ke4 Bg7 68. Qd3+ Kb4 69. Kd5 Bf6 70. Qc4+ Ka3) 65... Bf6 66. Qxc5) 62. b8=Q+ {[%emt 0:00:06] KQ-KQ} Kc2 {[%emt 0:00:13]} 63. Kg3 {[%emt 0:02:21]} c4 {[%emt 0:00:19]} 64. Qb7 {[%emt 0:00:16]} Qc3+ {[%emt 0:00:09]} 65. Kh4 {[%emt 0:00:19]} Qd4+ {[%emt 0:00:06]} 66. Kh3 {[%emt 0:00:13]} Qe3+ {[%emt 0:00:34]} 67. Kh4 {[%emt 0:00:12]} Qh6+ {[%emt 0:00:17]} 68. Kg4 {[%emt 0:00:09]} Qg6+ {[%emt 0:00:01]} 69. Kh4 {[%emt 0:00:10]} c3 {[%emt 0:00:04]} 70. Qb4 {[%emt 0:00:34]} Qh7+ {[%emt 0:00:34]} 71. Kg4 {[%emt 0:00:10]} Qg8+ {[%emt 0:00:07]} 72. Kh4 {[%emt 0:00:06]} Qd5 {[%emt 0:00:18] Hoping for ...Kd3.} 73. Qa4+ {[%emt 0:01:58]} Kc1 {[%emt 0:00:26]} 74. Qf4+ {[%emt 0:00:30]} Qd2 {[%emt 0:00:21]} 75. Qe5 {[%emt 0:00:06]} Qd3 {[%emt 0:01:40]} 76. Qf4+ {[%emt 0:00:28]} Qd2 {[%emt 0:00:39]} 77. Qe5 $1 {[%emt 0:00:04]} Qh6+ {[%emt 0:00:35]} 78. Kg3 {[%emt 0:00:11]} Qg6+ {[%emt 0:00:47]} 79. Kh4 {[%emt 0:01:02]} Qh7+ {[%emt 0:00:04]} 80. Kg4 {[%emt 0:00:33]} Qd3 {[%emt 0:00:11] ( -> ...c2)} (80... Qg6+ 81. Kf3 Qf7+ 82. Kg3 $19) 81. Qf4+ {[%emt 0:02:13]} Kd1 {[%emt 0:00:32]} 82. Kh4 {[%emt 0:00:36]} c2 {[%emt 0:01:50]} 83. Qg4+ {[%emt 0:00:06]} Kc1 {[%emt 0:00:23]} 84. Qb4 {[%emt 0:00:35]} Qh7+ {[%emt 0:00:24]} (84... Qe3 $142 85. Kg4 Kd1 86. Qa4 Kd2 87. Qb4+ Ke2 88. Qc4+ Qd3 89. Qc6 Kd2 90. Qh6+ Qe3 (90... Kc3 {is a self mate.} 91. Kh4 Qd4+ 92. Kh3 Kb2 93. Qh5 c1=Q 94. Qb5+ Kc2 95. Qc6+ Qc3+ 96. Qxc3+ Kxc3 97. Kg4 Kd4 98. Kf5 Qh6 99. Kg4 Ke4 100. Kg3 Qh1 101. Kg4 Qg2+ 102. Kh5 Kf5 103. Kh6 Qg6#) 91. Qd6+ Ke1 92. Qb4+ Kf1 (92... Qd2 {gets mated.} 93. Qc5 c1=Q 94. Qg1+ Ke2 95. Qg2+ Kd1 96. Qh1+ Kc2 97. Qh7+ Kb3 98. Qb7+ Qb4+ 99. Qxb4+ Kxb4 100. Kf5 Kc4 101. Kg4 Qe3 102. Kf5 Kd5 103. Kf6 Qf3+ 104. Kg5 Ke6 105. Kh4 Qg2 106. Kh5 Kf5 107. Kh6 Qg6#) 93. Qf8+ Ke2 94. Qa8 Qe6+ (94... c1=B 95. Qg2+ Kd3 96. Qf3 $11) 95. Kh5 Qf7+ (95... c1=B 96. Qg2+ Ke1 97. Qe4+ Qxe4 $11) 96. Kh4 Qh7+ (96... c1=B 97. Qg2+ Ke1 98. Qg3+ Kf1 99. Qf3+ Qxf3 $11) (96... Qf4+ 97. Kh5 Qf5+ 98. Kh4 Qh7+ 99. Kg3 Qg6+ 100. Kh2 c1=Q 101. Qa2+ Kf1 102. Qf7+ Qxf7 103. Kh3 Qh6+ 104. Kg4 Qff4#) 97. Kg3 Qg7+ (97... c1=B 98. Qf3+ Kd2 99. Qf2+ Kd3 100. Qf1+ Kc2 101. Qc4+ Kb1 102. Qb3+ Bb2 103. Qd1+ Bc1 104. Qb3+ Bb2 105. Qd1+ Ka2 106. Qd5+ Ka3 107. Qa5+ Kb3 108. Qb5+ Kc2 109. Qe2+ Kb3 110. Qb5+ Ka2 111. Qd5+ Kb1 112. Qd1+ $11) 98. Kh4 c1=Q (98... c1=B 99. Qe4+ Be3 100. Qg4+ Qxg4+ 101. Kxg4 $11) 99. Qe4+ Qe3 100. Qc2+ Kf1 101. Qc4+ Ke1 102. Qb4+ Kf2 103. Qb2+ Qxb2 104. Kh5 Qg3 105. Kh6 Qh8#) 85. Kg4 {[%emt 0:00:19]} Qd7+ {[%emt 0:00:06] Black mates.} 86. Kg3 {[%emt 0:00:50]} Kd1 {[%emt 0:00:44]} 87. Qb3 {[%emt 0:00:02]} Qg7+ {[%emt 0:00:30]} 88. Kh3 {[%emt 0:00:15]} Qh7+ {[%emt 0:00:06]} 89. Kg3 {[%emt 0:00:10]} Qe4 {[%emt 0:00:29]} 90. Kh3 {[%emt 0:00:38]} Kd2 {[%emt 0:00:40]} 91. Qa2 {[%emt 0:00:42]} Qe5 {[%emt 0:00:35]} 92. Kh4 {[%emt 0:00:33]} Qb5 {[%emt 0:00:13] Weighted Error Value: White=0.51/Black=0.18 (very precise) .  Loses game:     	White=1     	---        Mistake:       	White=3     	Black=3      Inaccurate:     	White=4     	Black=1      OK:         	White=12    	Black=17     Best:        	White=5     	Black=3      Strong:       	White=1     	Black=4      Brilliant:      	---       	Black=1} 0-1

[Event "7th Sharjah Masters 2024"]
[Site "Sharjah"]
[Date "2024.05.18"]
[Round "5.5"]
[White "Fedoseev, Vladimir"]
[Black "Yuffa, Daniil"]
[Result "1/2-1/2"]
[ECO "B87"]
[WhiteElo "2702"]
[BlackElo "2617"]
[Annotator "TA"]
[PlyCount "34"]
[EventDate "2024.05.13"]
[EventType "swiss"]
[EventCountry "UAE"]
[SourceTitle "playchess.com"]
[Source "ChessBase"]
[SourceQuality "1"]
[TimeControl "5400+30"]

{[%evp 22,34,12,25,27,0,0,0,0,0,0,0,0,0,0]} 1. e4 {[%emt 0:00:28]} c5 {[%emt 0:00:19]} 2. Nf3 {[%emt 0:00:07]} d6 {[%emt 0:00:20]} 3. d4 {[%emt 0:00:51]} cxd4 {[%emt 0:00:32]} 4. Nxd4 {[%emt 0:00:59]} Nf6 {[%emt 0:00:52]} 5. Nc3 {[%emt 0:00:08]} a6 {[%emt 0:00:27]} 6. Bc4 {[%emt 0:01:18]} e6 {[%emt 0:00:58]} 7. O-O {[%emt 0:00:11]} b5 {[%emt 0:01:18]} 8. Bb3 {[%emt 0:00:09]} Be7 {[%emt 0:00:52]} 9. Qf3 {[%emt 0:01:16]} Qb6 {[%emt 0:02:26]} 10. Be3 {[%emt 0:00:35]} Qb7 {[%emt 0:01:17]} 11. Qg3 {[%emt 0:00:56]} b4 {[%emt 0:02:23]} 12. Na4 {[%emt 0:00:35]} (12. Qxg7 $2 {perishes.} Rg8 13. Qh6 (13. Ba4+ $2 Bd7 $19) 13... bxc3 $19) 12... Nbd7 {[%emt 0:00:52]} 13. c3 {[%emt 0:04:26]} O-O {[%emt 0:02:20] The position is equal.} 14. Bh6 {[%emt 0:02:58]} Nh5 {[%emt 0:01:43]} 15. Qf3 {[%emt 0:00:11]} Nhf6 {[%emt 0:00:27]} 16. Qg3 {[%emt 0:00:46]} Nh5 {[%emt 0:00:25]} 17. Qf3 {[%emt 0:00:08]} Nhf6 {[%emt 0:00:11] A rather calm draw.   Weighted Error Value: White=0.04 (flawless) /Black=0.00 (flawless) .  Inaccurate:     	White=1     	---        OK:         	White=3     	Black=3      Best:        	---       	Black=2} 1/2-1/2